bitfinex/quotes_BTCUSD_20250313
["timestamp","ask_amount","ask_price","bid_price","bid_amount"]
[1741891193995,0.012355,80933.0,80927.0,0.259492]
[1741891194233,0.012354,80944.0,80934.0,0.012355]
[1741891194374,0.012354,80944.0,80928.0,0.36683399]
[1741891194375,0.419958,80944.0,80938.0,0.012355]
[1741891194572,0.16052,80944.0,80940.0,0.247096]
[1741891194895,0.16052,80944.0,80943.0,0.012354]
[1741891195256,0.16052,80944.0,80941.0,0.012354]
[1741891195531,0.012351,80962.0,80956.0,0.012352]
[1741891195739,0.259381,80962.0,80957.0,0.259393]
[1741891195966,0.012351,80965.0,80958.0,0.259391]
[1741891195967,0.0246962,80965.0,80958.0,0.259391]
[1741891196192,0.25938,80963.0,80955.0,0.2594]
[1741891196424,0.01935254,80961.0,80957.0,0.247044]
[1741891196653,0.01935254,80961.0,80957.0,0.259396]
[1741891196868,0.012351,80959.0,80953.0,0.012352]
[1741891197080,0.27873854,80961.0,80955.0,0.247048]
[1741891197290,0.27873854,80961.0,80956.0,0.259397]
[1741891197717,0.27873854,80961.0,80956.0,0.247045]
[1741891197869,0.01935254,80961.0,80957.0,0.259393]
[1741891198251,0.246995,80974.0,80955.0,0.015352]
[1741891198252,0.247032,80962.0,80955.0,0.2624]
[1741891198670,0.012351,80961.0,80957.0,0.247044]
[1741891198848,0.00012452,80966.0,80960.0,0.247035]
[1741891199057,0.00012452,80966.0,80962.0,0.012351]
[1741891199253,0.00012452,80966.0,80965.0,0.012351]
[1741891199477,0.00012452,80966.0,80963.0,0.012351]
[1741891199643,0.247023,80964.0,80960.0,0.247035]
[1741891200009,0.247031,80962.0,80956.0,0.259397]
[1741891200237,0.012351,80961.0,80950.0,0.012353]
[1741891200411,0.247096,80940.0,80939.0,0.000338]
[1741891200576,0.012353,80946.0,80939.0,0.000338]
[1741891200779,0.012354,80940.0,80939.0,0.000338]
[1741891200979,0.247093,80942.0,80939.0,0.000338]
[1741891201187,0.012354,80945.0,80939.0,0.000338]
[1741891201405,0.259438,80944.0,80939.0,0.000338]
[1741891201622,0.012354,80940.0,80939.0,0.000338]
[1741891201884,0.012354,80941.0,80939.0,0.000338]
[1741891202089,0.25945,80940.0,80939.0,0.000338]
[1741891202734,0.25945,80940.0,80939.0,0.001338]
[1741891203095,0.012352,80954.0,80946.0,0.012353]
[1741891203301,0.247076,80947.0,80942.0,0.012354]
[1741891203886,0.172832,80953.0,80939.0,0.13939299]
[1741891203887,0.16048,80953.0,80950.0,0.247064]
[1741891204086,0.16048,80953.0,80947.0,0.012353]
[1741891204087,0.16048,80965.0,80960.0,0.247033]
[1741891204267,0.172831,80965.0,80960.0,0.259384]
[1741891204467,0.259374,80964.0,80958.0,0.259393]
[1741891204910,0.02475276,80965.0,80961.0,0.259383]
[1741891205235,0.00012452,80967.0,80966.0,0.259367]
[1741891205434,0.00012452,80967.0,80966.0,0.37906799]
[1741891205901,0.00012452,80967.0,80966.0,0.50366799]
[1741891206479,0.00012452,80967.0,80966.0,0.50966799]
[1741891206684,0.00112452,80967.0,80966.0,0.43946799]
[1741891209341,0.00112452,80967.0,80966.0,0.45400884]
[1741891209545,0.00112452,80967.0,80966.0,0.75400884]
[1741891209949,5.2e-07,80967.0,80966.0,0.83610884]
[1741891210794,0.00016952,80967.0,80966.0,0.83610884]
[1741891210995,0.00016952,80967.0,80966.0,0.53110884]
[1741891211125,0.00016952,80967.0,80966.0,0.51656799]
[1741891211529,0.000169,80967.0,80966.0,0.50556799]
[1741891211773,0.000169,80967.0,80966.0,0.42846799]
[1741891211972,0.000169,80967.0,80966.0,0.39106799]
[1741891212532,0.000169,80967.0,80966.0,0.38506799]
[1741891212856,0.57220406,80967.0,80966.0,0.012]
[1741891213199,0.012353,80948.0,80939.0,0.012692]
[1741891213382,0.012353,80947.0,80942.0,0.012354]
[1741891213606,0.247078,80946.0,80942.0,0.012354]
[1741891213757,0.012353,80948.0,80943.0,0.012354]
[1741891213969,0.16036,80950.0,80949.0,0.259422]
[1741891214374,0.16036,80950.0,80949.0,0.012353]
[1741891214599,0.16036,80950.0,80948.0,0.012353]
[1741891214795,0.16036,80950.0,80948.0,0.259422]
[1741891214999,0.247049,80956.0,80950.0,0.259419]
[1741891215201,1.22746592,81146.0,80961.0,0.012351]
[1741891215202,0.000169,80967.0,80961.0,0.012351]
[1741891215402,0.000169,80967.0,80964.0,0.259373]
[1741891215403,0.16036,80966.0,80964.0,0.259373]
[1741891215566,0.16036,80966.0,80962.0,0.37907799]
[1741891215767,0.41973,80966.0,80962.0,0.11970099]
[1741891216612,0.41973,80966.0,80964.0,0.001]
[1741891216957,0.16036,80966.0,80964.0,0.001]
[1741891217178,0.001169,80967.0,80966.0,0.01235]
[1741891217351,0.001169,80967.0,80966.0,0.1332858]
[1741891217915,0.001169,80967.0,80966.0,0.13205099]
[1741891218292,0.000169,80967.0,80966.0,0.13205099]
[1741891218502,0.01450268,80967.0,80966.0,0.13205099]
[1741891218708,0.01450268,80967.0,80966.0,0.13705099]
[1741891218951,0.000169,80970.0,80969.0,0.259358]
[1741891219152,0.000169,80970.0,80969.0,0.37905899]
[1741891219405,0.000169,80970.0,80969.0,0.82059984]
[1741891220565,1e-06,80970.0,80969.0,0.83722294]
[1741891220853,0.78428,81004.0,81000.0,0.012345]
[1741891221052,0.00963888,81006.0,81001.0,0.13204599]
[1741891221622,0.00963888,81006.0,81001.0,0.11970099]
[1741891221920,0.012345,81003.0,81001.0,0.11970099]
[1741891222145,0.00963888,81006.0,81001.0,0.11870099]
[1741891222509,0.246901,81004.0,81001.0,0.002]
[1741891222851,0.246922,80997.0,80992.0,0.012346]
[1741891223027,0.246922,80997.0,80993.0,0.36663499]
[1741891223408,0.246922,80997.0,80983.0,0.012348]
[1741891223409,0.259297,80989.0,80983.0,0.012348]
[1741891223609,0.012346,80992.0,80985.0,0.012347]
[1741891223795,0.012346,80994.0,80987.0,0.259297]
[1741891223993,0.259267,80998.0,80991.0,0.012347]
[1741891224195,0.00058381,81007.0,81003.0,0.246904]
[1741891224436,0.012514,81004.0,80996.0,0.012346]
[1741891224691,0.012345,80998.0,80997.0,0.11970099]
[1741891224848,0.012346,80996.0,80985.0,0.246957]
[1741891225027,0.012347,80991.0,80986.0,0.36665399]
[1741891225211,0.246923,80997.0,80991.0,0.012347]
[1741891225412,0.012345,80998.0,80992.0,0.36663799]
[1741891225668,0.259249,81003.0,80997.0,0.012346]
[1741891225878,0.012345,81001.0,80993.0,0.259278]
[1741891226171,0.246913,81000.0,80997.0,0.003]
[1741891226602,0.000169,81004.0,80999.0,0.012345]
[1741891226796,0.000169,81004.0,81001.0,0.259253]
[1741891226979,0.246904,81003.0,81002.0,0.11970099]
[1741891227192,0.012514,81004.0,81002.0,0.11970099]
[1741891227387,0.000169,81004.0,81002.0,0.11970099]
[1741891227590,0.012345,81003.0,81002.0,0.11970099]
[1741891227912,0.012345,81003.0,80997.0,0.001]
[1741891228079,0.012345,81003.0,80997.0,0.24792]
[1741891228392,0.01951054,81004.0,80999.0,0.246913]
[1741891228393,0.26641454,81004.0,80999.0,0.246913]
[1741891229030,0.246906,81003.0,80998.0,0.259262]
[1741891229315,0.246906,81003.0,81001.0,0.003]
[1741891229517,0.01951054,81004.0,81003.0,0.259249]
[1741891230152,0.01951054,81004.0,81003.0,0.37894999]
[1741891231529,0.01951054,81004.0,81001.0,0.004]
[1741891231530,0.000169,81004.0,81001.0,0.004]
[1741891231731,0.01950932,81004.0,81003.0,0.012345]
[1741891231916,0.27875732,81004.0,81003.0,0.003]
[1741891232297,0.27875732,81004.0,81003.0,0.005]
[1741891232485,0.27875732,81004.0,81003.0,0.002]
[1741891233214,0.259417,81004.0,81003.0,0.002]
[1741891233969,0.259252,81002.0,81001.0,0.003]
[1741891234167,0.259271,80997.0,80991.0,0.24694]
[1741891234368,0.259276,80995.0,80992.0,0.11970099]
[1741891234575,0.259276,80995.0,80986.0,0.246956]
[1741891234576,0.012346,80995.0,80986.0,0.246956]
[1741891234750,0.012347,80991.0,80986.0,0.259303]
[1741891235184,0.259316,80983.0,80969.0,0.259356]
[1741891235385,0.012348,80979.0,80973.0,0.11970099]
[1741891235614,0.012348,80982.0,80976.0,0.259335]
[1741891235814,0.012348,80982.0,80977.0,0.11970099]
[1741891236092,0.259319,80982.0,80977.0,0.11970099]
[1741891236293,0.259319,80982.0,80976.0,0.259335]
[1741891236294,0.012349,80973.0,80964.0,1.512351]
[1741891236425,0.012348,80979.0,80972.0,0.012349]
[1741891236622,0.259329,80978.0,80973.0,0.11970099]
[1741891236822,0.01235,80968.0,80966.0,0.00046261]
[1741891237023,0.01235,80967.0,80966.0,0.00046261]
[1741891237569,0.02531406,80967.0,80966.0,0.00046261]
[1741891238159,0.15736505,80967.0,80966.0,0.00046261]
[1741891238577,0.17009124,80967.0,80966.0,0.00046261]
[1741891240001,0.17591136,80967.0,80966.0,0.00046261]
[1741891240421,0.17791136,80967.0,80966.0,0.00046261]
[1741891240858,0.04548418,80967.0,80966.0,0.00046261]
[1741891241018,0.00782012,80967.0,80966.0,0.00046261]
[1741891241219,0.02017012,80967.0,80966.0,0.00046261]
[1741891241668,0.01817012,80967.0,80966.0,0.00046261]
[1741891242074,0.02017012,80967.0,80966.0,0.00046261]
[1741891243266,0.01817012,80967.0,80966.0,0.00046261]
[1741891243528,0.01817012,80967.0,80966.0,0.00246261]
[1741891243790,0.01817012,80967.0,80966.0,0.00346261]
[1741891244528,0.01817012,80967.0,80966.0,0.00046261]
[1741891244728,0.21797111,80967.0,80966.0,0.00046261]
[1741891244927,0.25941,80953.0,80947.0,0.012353]
[1741891245132,0.012353,80950.0,80945.0,0.259435]
[1741891245720,0.012353,80951.0,80946.0,0.259428]
[1741891245913,0.247052,80955.0,80948.0,0.012353]
[1741891246272,0.247053,80955.0,80949.0,0.259422]
[1741891246475,0.25941,80953.0,80948.0,0.13205399]
[1741891246635,0.247063,80951.0,80948.0,0.11970099]
[1741891247016,0.259431,80946.0,80945.0,0.002]
[1741891247222,0.259431,80946.0,80935.0,0.3493]
[1741891247223,0.25945,80940.0,80935.0,0.3493]
[1741891247472,0.2651454,80940.0,80939.0,0.12016351]
[1741891247682,0.0180494,80940.0,80939.0,0.12016351]
[1741891247885,0.0180494,80940.0,80939.0,0.00046252]
[1741891249021,0.02083749,80940.0,80939.0,0.00046252]
[1741891249921,0.02083749,80940.0,80939.0,0.00546252]
[1741891250122,0.02083749,80940.0,80939.0,0.00946252]
[1741891250327,0.02083749,80940.0,80939.0,0.00546252]
[1741891251061,0.02083749,80940.0,80939.0,0.00046252]
[1741891251483,0.02083749,80940.0,80939.0,0.00146252]
[1741891253254,0.04535024,80940.0,80939.0,0.00146252]
[1741891253500,0.34535024,80940.0,80939.0,0.00146252]
[1741891260369,0.46505123,80940.0,80939.0,5.2e-07]
[1741891260583,0.259492,80927.0,80926.0,0.000337]
[1741891260929,0.259492,80927.0,80911.0,0.0004]
[1741891260930,0.259541,80912.0,80911.0,0.0004]
[1741891261067,0.012357,80921.0,80912.0,0.247182]
[1741891261272,0.012357,80921.0,80911.0,0.0008157]
[1741891261273,0.02496266,80921.0,80920.0,0.259514]
[1741891261588,0.16008,80930.0,80921.0,0.012357]
[1741891261589,0.247143,80925.0,80921.0,0.012357]
[1741891261792,0.16008,80930.0,80924.0,0.012357]
[1741891261974,0.16008,80930.0,80922.0,0.012357]
[1741891261975,0.012356,80929.0,80923.0,0.012357]
[1741891262169,0.247135,80928.0,80923.0,0.012357]
[1741891262376,0.247135,80928.0,80922.0,0.37920699]
[1741891262377,0.259491,80928.0,80926.0,0.002]
[1741891262626,0.259491,80928.0,80922.0,0.11970099]
[1741891262863,0.259498,80926.0,80922.0,0.11970099]
[1741891263039,0.259505,80924.0,80917.0,0.012358]
[1741891263176,0.259505,80924.0,80923.0,0.003]
[1741891263392,0.012357,80924.0,80923.0,0.003]
[1741891263593,0.259505,80923.0,80918.0,0.259521]
[1741891263792,0.259505,80923.0,80914.0,0.259531]
[1741891263793,0.012357,80921.0,80914.0,0.259531]
[1741891264044,0.259516,80920.0,80915.0,0.259528]
[1741891264266,0.012358,80914.0,80907.0,0.012359]
[1741891264401,0.247169,80917.0,80910.0,0.012359]
[1741891264402,0.259527,80917.0,80910.0,0.012359]
[1741891264611,0.26652442,80919.0,80910.0,0.012359]
[1741891264813,0.27888242,80919.0,80912.0,0.259538]
[1741891265171,0.01936242,80919.0,80917.0,0.247166]
[1741891265312,0.01936242,80919.0,80918.0,0.012358]
[1741891265517,0.01936242,80919.0,80918.0,0.016358]
[1741891265918,0.01936242,80919.0,80918.0,0.004]
[1741891266123,0.01936242,80919.0,80917.0,0.247166]
[1741891266357,0.01936242,80919.0,80918.0,0.012358]
[1741891266563,0.012358,80918.0,80917.0,0.003]
[1741891266817,0.012358,80913.0,80911.0,0.0008157]
[1741891267021,0.259539,80913.0,80911.0,0.0008157]
[1741891267329,0.312359,80912.0,80911.0,0.0008157]
[1741891267732,0.312359,80912.0,80911.0,0.00049551]
[1741891268090,0.32455007,80912.0,80911.0,0.00049551]
[1741891268551,0.16008,80914.0,80911.0,0.00049551]
[1741891268778,0.012359,80912.0,80911.0,0.00549551]
[1741891269170,0.260541,80912.0,80911.0,0.00549551]
[1741891269539,0.259541,80912.0,80911.0,0.00549551]
[1741891269746,0.259541,80912.0,80911.0,0.00149551]
[1741891270232,0.26777723,80912.0,80911.0,0.00249551]
[1741891271249,0.00823623,80912.0,80911.0,0.00149551]
[1741891271404,0.00823623,80912.0,80911.0,0.00249551]
[1741891271812,0.28714064,80912.0,80911.0,0.00549551]
[1741891271992,0.28714064,80912.0,80911.0,0.00583371]
[1741891274342,0.56777723,80912.0,80911.0,0.00583371]
[1741891274543,1.47223822,80912.0,80911.0,0.00583371]
[1741891275125,1.47223822,80912.0,80911.0,0.00283371]
[1741891275318,1.47623822,80912.0,80911.0,0.00083371]
[1741891275727,1.47223822,80912.0,80911.0,0.00083371]
[1741891276066,1.35553723,80912.0,80911.0,0.00083371]
[1741891276472,1.35253723,80912.0,80911.0,0.00083371]
[1741891276892,1.59219911,80912.0,80911.0,7.1e-07]
[1741891277094,0.259588,80897.0,80874.0,0.0761]
[1741891277294,0.419588,80897.0,80881.0,0.247273]
[1741891277479,0.42781115,80897.0,80881.0,0.247273]
[1741891277707,0.44059607,80897.0,80883.0,0.259633]
[1741891277915,0.42781115,80897.0,80888.0,0.0126992]
[1741891278111,0.42781115,80897.0,80889.0,0.012362]
[1741891278319,0.42781115,80897.0,80888.0,0.2599512]
[1741891278320,0.42781115,80897.0,80888.0,0.0003372]
[1741891278534,0.16822315,80897.0,80888.0,0.2599522]
[1741891278747,0.18058415,80897.0,80889.0,0.012362]
[1741891278960,0.18058415,80897.0,80896.0,0.002338]
[1741891279417,0.2053212,80897.0,80896.0,0.001338]
[1741891279782,0.2053212,80897.0,80896.0,0.002338]
[1741891280212,0.2053212,80897.0,80896.0,0.003338]
[1741891282321,0.22468958,80897.0,80896.0,0.003338]
[1741891284642,0.06468958,80897.0,80896.0,0.003338]
[1741891285651,0.00822315,80897.0,80896.0,0.46163099]
[1741891285851,0.0003384,80903.0,80902.0,0.01236]
[1741891286077,0.0003384,80903.0,80902.0,0.259572]
[1741891286291,0.0003384,80903.0,80902.0,0.37927299]
[1741891287675,0.0003384,80903.0,80902.0,0.74281384]
[1741891287896,0.0003384,80903.0,80902.0,0.82371384]
[1741891288306,4e-07,80903.0,80902.0,0.82871384]
[1741891288679,0.78492,80933.0,80927.0,0.259492]
[1741891288830,0.15996,80936.0,80927.0,0.259492]
[1741891288831,0.259472,80934.0,80927.0,0.258492]
[1741891289054,0.00829526,80928.0,80927.0,0.258492]
[1741891289263,0.0001691,80928.0,80927.0,0.258492]
[1741891289485,0.3,80925.0,80902.0,0.054]
[1741891289685,0.012358,80916.0,80907.0,0.247195]
[1741891289919,0.012358,80916.0,80902.0,0.13070099]
[1741891289920,0.247204,80905.0,80902.0,0.13070099]
[1741891290074,0.259569,80903.0,80902.0,0.011]
[1741891290268,0.26782916,80903.0,80902.0,0.011]
[1741891290548,0.26782916,80903.0,80896.0,0.01287587]
[1741891290549,0.247223,80899.0,80896.0,0.01287587]
[1741891290726,0.259584,80899.0,80896.0,0.000338]
[1741891290930,0.001,80903.0,80902.0,0.01736]
[1741891291065,0.001,80903.0,80902.0,0.13706099]
[1741891291261,0.25955,80910.0,80902.0,0.13206099]
[1741891291598,0.259535,80914.0,80906.0,0.259557]
[1741891291765,0.247185,80911.0,80906.0,0.2472]
[1741891291966,0.259549,80910.0,80904.0,0.247205]
[1741891292604,0.259549,80910.0,80905.0,0.01236]
[1741891293062,0.259552,80909.0,80906.0,0.002]
[1741891293262,0.259552,80909.0,80904.0,0.259565]
[1741891293462,0.012359,80912.0,80906.0,0.2472]
[1741891293813,0.01936382,80908.0,80906.0,0.2472]
[1741891294417,0.01936382,80908.0,80906.0,0.2512]
[1741891294574,0.01936382,80908.0,80906.0,0.26356]
[1741891294779,0.01936382,80908.0,80905.0,0.01236]
[1741891295202,0.26655982,80908.0,80906.0,0.007]
[1741891295378,0.27891882,80908.0,80906.0,0.007]
[1741891295566,0.01936382,80908.0,80906.0,0.007]
[1741891295766,0.01936382,80908.0,80906.0,0.004]
[1741891296010,0.01936382,80908.0,80907.0,0.13205999]
[1741891296221,0.3831,80935.0,80927.0,0.259492]
[1741891296222,0.259469,80935.0,80927.0,0.259492]
[1741891296425,0.406974,80941.0,80927.0,0.37919299]
[1741891296667,0.02429486,80938.0,80927.0,0.37919299]
[1741891296807,0.259463,80937.0,80927.0,0.37919299]
[1741891297012,0.012355,80937.0,80927.0,0.37919299]
[1741891297233,0.0125251,80928.0,80920.0,0.259512]
[1741891297483,0.00823323,80927.0,80923.0,0.247146]
[1741891297653,0.012355,80934.0,80927.0,0.005]
[1741891297872,0.259472,80933.0,80927.0,0.264489]
[1741891298062,0.259472,80933.0,80927.0,0.005]
[1741891298236,0.259481,80931.0,80924.0,0.13205799]
[1741891298812,0.012356,80927.0,80920.0,0.0176281]
[1741891299062,0.012356,80927.0,80921.0,0.37920999]
[1741891299262,0.259484,80930.0,80923.0,0.259504]
[1741891299467,0.259484,80930.0,80924.0,0.012357]
[1741891300013,0.00728536,80929.0,80927.0,0.248135]
[1741891300213,0.259472,80933.0,80927.0,0.248135]
[1741891300423,0.0073149,80932.0,80931.0,0.247124]
[1741891300643,0.00041493,80934.0,80931.0,0.247124]
[1741891300644,0.00041493,80934.0,80933.0,0.012355]
[1741891300847,0.00041493,80934.0,80933.0,0.259472]
[1741891301351,0.00041493,80934.0,80933.0,0.37917299]
[1741891301844,0.02143448,80938.0,80937.0,0.55946]
[1741891302018,0.012519,80966.0,80959.0,0.259387]
[1741891302246,0.012519,80966.0,80959.0,0.012351]
[1741891302247,0.012351,80965.0,80959.0,0.012351]
[1741891302422,0.00029348,80966.0,80965.0,0.012351]
[1741891302856,0.012351,80962.0,80960.0,0.11970099]
[1741891303070,0.012351,80965.0,80958.0,0.259393]
[1741891303071,0.259371,80965.0,80958.0,0.259393]
[1741891303273,0.259371,80965.0,80960.0,0.012351]
[1741891303478,0.00029348,80966.0,80964.0,0.259371]
[1741891303677,0.00029348,80966.0,80965.0,0.012351]
[1741891303877,0.00029348,80966.0,80963.0,0.012351]
[1741891304103,0.00229348,80966.0,80963.0,0.012351]
[1741891304249,0.00229348,80966.0,80965.0,0.012351]
[1741891304445,0.00029348,80966.0,80965.0,0.012351]
[1741891304647,0.25966048,80966.0,80965.0,0.001]
[1741891305226,0.25966048,80966.0,80960.0,0.012351]
[1741891305404,0.25966048,80966.0,80963.0,0.001]
[1741891305597,0.012351,80964.0,80957.0,0.01235039]
[1741891305802,0.012351,80960.0,80953.0,0.259408]
[1741891306004,0.012351,80959.0,80953.0,0.27166091]
[1741891306158,0.012351,80959.0,80953.0,0.259408]
[1741891306362,0.259392,80959.0,80953.0,0.259408]
[1741891306563,0.259389,80960.0,80955.0,0.24705]
[1741891306964,0.259392,80959.0,80954.0,0.012352]
[1741891307168,0.012352,80953.0,80943.0,0.012354]
[1741891307369,0.247059,80952.0,80945.0,0.012354]
[1741891307823,0.00745218,80951.0,80946.0,0.012353]
[1741891308060,0.00745218,80951.0,80947.0,0.247072]
[1741891308269,0.28394492,80955.0,80950.0,0.012353]
[1741891308472,0.28394492,80955.0,80949.0,0.247066]
[1741891308473,0.00745218,80954.0,80949.0,0.247066]
[1741891308892,0.01935328,80953.0,80949.0,0.247066]
[1741891309090,0.01935328,80953.0,80948.0,0.012353]
[1741891309267,0.012354,80941.0,80931.0,0.259478]
[1741891309467,0.259465,80936.0,80932.0,0.11970099]
[1741891309675,0.00993624,80935.0,80932.0,0.11970099]
[1741891310017,0.247111,80935.0,80934.0,0.0003382]
[1741891310353,0.27882347,80935.0,80934.0,0.0003382]
[1741891310537,0.25959041,80935.0,80934.0,0.0003382]
[1741891311115,0.25959041,80935.0,80934.0,0.0033382]
[1741891311319,0.00012441,80935.0,80934.0,0.0033382]
[1741891311930,0.01247941,80935.0,80934.0,0.0033382]
[1741891312453,0.01247941,80935.0,80934.0,0.0043382]
[1741891313136,0.01247941,80935.0,80934.0,0.0013382]
[1741891313341,0.01247941,80935.0,80934.0,0.0033382]
[1741891313890,0.012358,80919.0,80905.0,0.2598982]
[1741891314092,0.259531,80915.0,80910.0,0.259544]
[1741891314357,0.259524,80918.0,80911.0,1.5]
[1741891314541,0.012358,80917.0,80911.0,0.259541]
[1741891314838,0.012358,80917.0,80910.0,0.37924499]
[1741891314839,0.259527,80916.0,80910.0,0.37924499]
[1741891315217,0.00993624,80915.0,80910.0,0.37924499]
[1741891315412,0.00993624,80915.0,80911.0,0.259541]
[1741891315632,0.00993624,80915.0,80906.0,0.01236]
[1741891315633,0.012359,80910.0,80905.0,0.01291336]
[1741891315843,0.25956,80906.0,80905.0,0.0003382]
[1741891316243,0.26931685,80906.0,80905.0,0.0003382]
[1741891316855,0.26931685,80906.0,80905.0,0.00075313]
[1741891317058,0.26931685,80906.0,80905.0,0.00275313]
[1741891317251,0.26931685,80906.0,80905.0,0.00075313]
[1741891317458,0.00975685,80906.0,80905.0,0.00375313]
[1741891317823,0.02510933,80908.0,80905.0,0.00375313]
[1741891318226,0.00975685,80907.0,80905.0,0.00375313]
[1741891318698,0.012359,80910.0,80905.0,0.00075313]
[1741891318699,0.00975685,80906.0,80905.0,0.00075313]
[1741891318908,0.01936482,80908.0,80905.0,0.00075313]
[1741891319133,0.00975685,80906.0,80905.0,0.00075313]
[1741891319318,0.01936482,80908.0,80905.0,0.00075313]
[1741891319526,0.01967764,80906.0,80905.0,0.00075313]
[1741891319730,0.25956,80906.0,80905.0,0.00375313]
[1741891319972,0.26687764,80906.0,80905.0,0.00575313]
[1741891320144,0.26687764,80906.0,80905.0,0.00075313]
[1741891320555,0.26687764,80906.0,80905.0,0.00175313]
[1741891320990,0.00731764,80906.0,80905.0,0.00175313]
[1741891321496,0.01967764,80906.0,80905.0,0.00175313]
[1741891321713,0.01967764,80906.0,80905.0,0.00075313]
[1741891322088,0.00731764,80906.0,80905.0,0.00175313]
[1741891322302,0.01936482,80908.0,80905.0,0.00175313]
[1741891322814,0.01936482,80908.0,80905.0,0.00275313]
[1741891323014,0.26655982,80908.0,80905.0,0.00275313]
[1741891323260,0.259575,80902.0,80896.0,0.247567]
[1741891323430,0.259575,80902.0,80898.0,1.5]
[1741891323751,0.247224,80898.0,80896.0,0.000338]
[1741891324081,0.012361,80897.0,80896.0,0.000338]
[1741891324489,0.172001,80897.0,80896.0,0.000338]
[1741891324692,0.59170199,80897.0,80896.0,1e-06]
[1741891325097,0.61605645,80897.0,80896.0,1e-06]
[1741891325646,0.49635546,80897.0,80896.0,1e-06]
[1741891325861,0.49635546,80897.0,80896.0,0.001001]
[1741891325862,0.03671546,80897.0,80896.0,0.001001]
[1741891326265,0.03671546,80897.0,80896.0,1e-06]
[1741891326396,0.05608488,80897.0,80896.0,1e-06]
[1741891326595,0.05908488,80897.0,80896.0,1e-06]
[1741891327039,0.05808488,80897.0,80896.0,1e-06]
[1741891327216,0.05608488,80897.0,80896.0,1e-06]
[1741891328732,0.04372388,80897.0,80896.0,1e-06]
[1741891329090,0.01936942,80897.0,80896.0,0.13206299]
[1741891329655,0.01936942,80897.0,80896.0,0.21059891]
[1741891329850,0.01936942,80897.0,80896.0,0.51059891]
[1741891330053,4.2e-07,80897.0,80896.0,0.51236299]
[1741891330320,0.02492695,80919.0,80918.0,0.012358]
[1741891330484,0.25948,80931.0,80924.0,0.012357]
[1741891330687,0.03659497,80925.0,80915.0,0.247171]
[1741891330899,0.012357,80920.0,80915.0,0.11970099]
[1741891331100,0.03659497,80925.0,80918.0,0.25952]
[1741891331101,0.00710383,80919.0,80918.0,0.25952]
[1741891331323,0.03659497,80925.0,80918.0,0.25952]
[1741891331745,0.25425183,80924.0,80918.0,0.25952]
[1741891331917,0.01946083,80924.0,80919.0,0.012358]
[1741891332137,0.259505,80923.0,80918.0,0.25952]
[1741891332504,0.259505,80923.0,80896.0,0.077301]
[1741891332505,0.012358,80913.0,80905.0,0.259563]
[1741891332710,0.012358,80917.0,80909.0,0.259549]
[1741891332906,0.00730403,80916.0,80909.0,0.259549]
[1741891333117,0.012358,80915.0,80909.0,0.259549]
[1741891333325,0.012358,80914.0,80907.0,0.259556]
[1741891333527,0.247191,80909.0,80906.0,0.01229666]
[1741891333725,0.25955,80909.0,80905.0,0.000169]
[1741891333924,0.00728697,80908.0,80905.0,0.259732]
[1741891334284,0.012359,80909.0,80905.0,0.000169]
[1741891334558,0.00971597,80908.0,80905.0,0.000169]
[1741891334728,0.00971597,80908.0,80905.0,0.247369]
[1741891334893,0.00971597,80908.0,80905.0,0.2601173]
[1741891335100,0.012359,80908.0,80905.0,0.000169]
[1741891335278,0.00969667,80907.0,80905.0,0.000169]
[1741891335483,0.01236,80906.0,80905.0,0.000169]
[1741891335698,0.02204737,80906.0,80905.0,0.000169]
[1741891335903,0.02204737,80906.0,80905.0,0.003169]
[1741891336100,0.02204737,80906.0,80905.0,0.005169]
[1741891336306,0.02204737,80906.0,80905.0,0.002169]
[1741891336307,0.35913892,80906.0,80905.0,0.002169]
[1741891336530,0.34636567,80906.0,80905.0,0.000169]
[1741891336749,0.34636567,80906.0,80905.0,0.002169]
[1741891338164,0.34636567,80906.0,80905.0,0.001169]
[1741891338409,0.35913144,80906.0,80905.0,0.000169]
[1741891338566,0.36113144,80906.0,80905.0,0.000169]
[1741891338768,0.36313144,80906.0,80905.0,0.000169]
[1741891338965,0.36113144,80906.0,80905.0,0.000169]
[1741891339177,0.35913144,80906.0,80905.0,0.000169]
[1741891339594,0.36113144,80906.0,80905.0,0.000169]
[1741891340168,0.36313144,80906.0,80905.0,0.000169]
[1741891341963,0.35036567,80906.0,80905.0,0.000169]
[1741891342582,0.03800567,80906.0,80905.0,0.000169]
[1741891343069,0.29556567,80906.0,80905.0,0.000169]
[1741891343496,0.29356567,80906.0,80905.0,0.000169]
[1741891343855,0.00785967,80906.0,80905.0,0.000169]
[1741891344061,0.26741967,80906.0,80905.0,0.000169]
[1741891345363,0.26741967,80906.0,80905.0,0.247372]
[1741891345364,0.00785967,80906.0,80905.0,0.247372]
[1741891345779,0.012357,80923.0,80915.0,0.012358]
[1741891345986,0.15952,80917.0,80913.0,0.012358]
[1741891346208,0.15952,80917.0,80911.0,0.012359]
[1741891346444,0.012358,80914.0,80907.0,0.012359]
[1741891346638,0.259539,80913.0,80906.0,0.01236]
[1741891346807,0.259539,80913.0,80907.0,0.259556]
[1741891347009,0.012359,80911.0,80905.0,0.39163786]
[1741891347219,0.01236,80906.0,80905.0,0.000169]
[1741891347418,0.2472,80907.0,80905.0,0.000169]
[1741891347620,0.012359,80908.0,80905.0,0.000169]
[1741891347822,0.012359,80911.0,80905.0,0.24737]
[1741891348027,0.012359,80908.0,80905.0,0.000169]
[1741891348206,0.171878,80917.0,80905.0,0.000169]
[1741891348423,0.259536,80914.0,80908.0,0.012359]
[1741891348573,0.259533,80915.0,80909.0,0.012359]
[1741891348976,0.247183,80912.0,80908.0,0.012359]
[1741891349174,0.15952,80917.0,80915.0,0.24717]
[1741891349378,0.16052,80917.0,80916.0,0.012358]
[1741891349625,0.001,80917.0,80916.0,0.012358]
[1741891349885,0.56898,80924.0,80919.0,0.012358]
[1741891350021,0.0245395,80923.0,80919.0,0.012358]
[1741891350222,0.0245395,80923.0,80917.0,0.259524]
[1741891350589,0.0245395,80923.0,80918.0,0.247161]
[1741891350779,0.012358,80918.0,80912.0,0.259539]